{"text_format":"3","workbook":"xlsx","n_sheets":8,"sheets":["Ohje","indikaattori- ja indeksiarvot ","indikaattorien_painotus","perustelut_painotukselle","kuvaaja_vesistokuormitusind ","kuvaaja_ilmastopaastoindeksi","kuvaaja_sopeutumisindeksi","kuvaaja_monimuotoisuusindeksi"],"not_rendered":{"charts":4,"images":1},"read":"whole","date_system":"1900"}

{"sheet":"Ohje","index":0,"n_rows":9,"n_cols":1,"rows_kept":9}
[]
["OHJE\n"]
["1) Tuo ensin paikkatieto-ohjelmasta indikaattorien arvot välilehdelle \"indikaattori- ja indeksiarvot\" sarakkeisiin B-M. Muista kopioida myös valuma-alueen id-sarakkeeseen A (sarakkeen nimi Qgisissä \"taso4_id\"). Skaalatut arvot lasketaan automaattisesti sarakkeisiin N-Z. \nMuista tarkistaa, että skaalaukseen käytetty kaava on kopioitu jokaisen rivin kohdalla, jotta jokaiselle osavaluma-alueelle lasketaan skaalattu indikaattorin arvo, eli laajenna kaava-aluetta alemmaksi tarvittaessa. Tyhjennä myös ylimääräiset rivit (älä kuitenkaan täysin poista rivejä jotta muiden sivujen kaavat säilyvät).\n"]
["2) Arvioi tämän jälkeen välilehdelle \"indikaattorien painotus\" indikaattorien tärkeys, vaihteluväli ja epävarmuus sarakkeisiin F-H. Tärkeydelle ja epävarmuudelle on annettu viitteelliset esimerkkiarvot, joiden perustelut löytyvät eri välilehdeltä (\"perustelut_painotukselle\"). Vaihteluvälin arviointiin on lisäohjeita kunkin rivin lopussa. Jos indikaattorien arvot on tuotu oikeassa muodossa, välilehdelle täyttyvät automaattisesti indikaattorien minimi- ja maksimiarvot sekä niiden erotus. \n"]
["3) Kun tärkeys, vaihteluväli ja epävarmuus on määritetty painoarvot määräytyvät näiden tulona automaattisesti. \n"]
["4) Indeksien arvot lasketaan automaattisesti välilehdelle \"indikaattori- ja indeksiarvot\" (Sarakkeet AA- AD). Näissä indikaattorien skaalatut arvot on kerrottu niiden painoarvolla ja summattu indeksiksi (tämä selostettu myös ohjeistusdokumentissa).\n"]
["5) Pylväskuvaajat eri indekseistä muodostuvat automaattisesti kuvaaja-välilehdille (ks. Esim. \"kuvaaja_ilmastopaastoindeksi\".)\n"]
["6) Kopioidaan arvot \"indikaattori- ja indeksiarvot\" välilehdeltä ensimmäistä riviä lukuunottamatta erilliseen exceliin ja tallennetaan tämä *.csv tiedostona. Näin taulukko saadaan vietyä takaisin QGIS:iin karttojen tekoa varten.\n"]
["-> Syötä siis tarvittavat tiedot Excelin oranssipohjaisiin soluihin! Lisäohjeistusta löydät välilehdiltä oranssilla."]

{"sheet":"indikaattori- ja indeksiarvot ","index":1,"n_rows":17,"n_cols":30,"rows_kept":17}
[null,"KOPIOI INDIKAATTORIEN ARVOT TÄNNE (SARAKKEET B-M) ja taso4_id-arvo sarakkeeseen A",{"$nulls":10},"indikaattorin painoarvo ",{"$f":"indikaattorien_painotus!J3","v":{"v":0,"d":"0.00"}},{"$f":"indikaattorien_painotus!J4","v":{"v":0,"d":"0.00"}},{"$f":"indikaattorien_painotus!J5","v":{"v":0,"d":"0.00"}},{"$f":"indikaattorien_painotus!J6","v":{"v":0,"d":"0.00"}},{"$f":"indikaattorien_painotus!J8","v":{"v":0,"d":"0.00"}},{"$f":"indikaattorien_painotus!J9","v":{"v":0,"d":"0.00"}},{"$f":"indikaattorien_painotus!J10","v":{"v":0,"d":"0.00"}},{"$f":"indikaattorien_painotus!J12","v":{"v":0,"d":"0.00"}},{"$f":"indikaattorien_painotus!J13","v":{"v":0,"d":"0.00"}},{"$f":"indikaattorien_painotus!J14","v":{"v":0,"d":"0.00"}},{"$f":"indikaattorien_painotus!J16","v":{"v":0,"d":"0.00"}},{"$f":"indikaattorien_painotus!J17","v":{"v":0,"d":"0.00"}},{"$f":"indikaattorien_painotus!J18","v":{"v":0,"d":"0.00"}}]
["taso4_id","p_mean","n_mean","toc_mean","eroosio_mean","ojitetut_turvemaat","turvetuotantoalueet","turvepellot","vesienpalautuskohteet","dtw_alle_50cm","hyvaa_huonommat_jarvet","hyvaa_huonommat_joet","purohelmi_lt_alle50","skaalattu_p_mean","skaalattu_n_mean","skaalattu_toc_mean","skaalattu_eroosio_mean","skaalattu_ojitetut_turvemaat","skaalattu_turvetuotantoalueet_(ilmastopaastoindeksi)","skaalattu_turvepellot","skaalattu_turvetuotantoalueet_(sopeutumisindeksi)","skaalattu_vesienpalautuskohteet","skaalattu_dtw_alle_50cm","skaalattu_hyvaa_huonommat_jarvet","skaalattu_hyvaa_huonommat_joet","skaalattu_purohelmi_lt_alle50","vesistokuormitusindeksi ","ilmastopaastoindeksi","sopeutumisindeksi ","monimuotoisuusindeksi "]
[{"$nulls":13},{"$f":"IF(SUM(B:B)>0,(B3-MIN(B:B))/(MAX(B:B)-MIN(B:B)),0)","v":{"v":0,"d":"0.00"}},{"$f":"IF(SUM(C:C)>0,(C3-MIN(C:C))/(MAX(C:C)-MIN(C:C)),0)","v":{"v":0,"d":"0.00"}},{"v":0,"d":"0.00"},{"v":0,"d":"0.00"},{"v":0,"d":"0.00"},{"v":0,"d":"0.00"},{"v":0,"d":"0.00"},{"$f":"IF(SUM(G:G)>0,(G3-MIN(G:G))/(MAX(G:G)-MIN(G:G)),0)","v":{"v":0,"d":"0.00"}},{"$f":"IF(SUM(I:I)>0,(I3-MIN(I:I))/(MAX(I:I)-MIN(I:I)),0)","v":{"v":0,"d":"0.00"}},{"$f":"IF(SUM(J:J)>0,(J3-MIN(J:J))/(MAX(J:J)-MIN(J:J)),0)","v":{"v":0,"d":"0.00"}},{"v":0,"d":"0.00"},{"v":0,"d":"0.00"},{"v":0,"d":"0.00"},{"$f":"$N$1*N3+$O$1*O3+$P$1*P3+$Q$1*Q3","v":{"v":0,"d":"0.00"}},{"$f":"$R$1*R3+$S$1*S3+$T$1*T3","v":{"v":0,"d":"0.00"}},{"$f":"$U$1*U3+$V$1*V3+$W$1*W3","v":{"v":0,"d":"0.00"}},{"$f":"$X$1*X3+$Y$1*Y3+$Z$1*Z3","v":{"v":0,"d":"0.00"}}]
[{"$nulls":13},{"$f":"IF(SUM(B:B)>0,(B4-MIN(B:B))/(MAX(B:B)-MIN(B:B)),0)","v":{"v":0,"d":"0.00"}},{"$f":"IF(SUM(C:C)>0,(C4-MIN(C:C))/(MAX(C:C)-MIN(C:C)),0)","v":{"v":0,"d":"0.00"}},{"$f":"IF(SUM(D:D)>0,(D4-MIN(D:D))/(MAX(D:D)-MIN(D:D)),0)","v":{"v":0,"d":"0.00"}},{"$f":"IF(SUM(E:E)>0,(E4-MIN(E:E))/(MAX(E:E)-MIN(E:E)),0)","v":{"v":0,"d":"0.00"}},{"$f":"IF(SUM(F:F)>0,(F4-MIN(F:F))/(MAX(F:F)-MIN(F:F)),0)","v":{"v":0,"d":"0.00"}},{"$f":"IF(SUM(G:G)>0,(G4-MIN(G:G))/(MAX(G:G)-MIN(G:G)),0)","v":{"v":0,"d":"0.00"}},{"$f":"IF(SUM(H:H)>0,(H4-MIN(H:H))/(MAX(H:H)-MIN(H:H)),0)","v":{"v":0,"d":"0.00"}},{"$f":"IF(SUM(G:G)>0,(G4-MIN(G:G))/(MAX(G:G)-MIN(G:G)),0)","v":{"v":0,"d":"0.00"}},{"$f":"IF(SUM(I:I)>0,(I4-MIN(I:I))/(MAX(I:I)-MIN(I:I)),0)","v":{"v":0,"d":"0.00"}},{"$f":"IF(SUM(J:J)>0,(J4-MIN(J:J))/(MAX(J:J)-MIN(J:J)),0)","v":{"v":0,"d":"0.00"}},{"$f":"IF(SUM(K:K)>0,(K4-MIN(K:K))/(MAX(K:K)-MIN(K:K)),0)","v":{"v":0,"d":"0.00"}},{"$f":"IF(SUM(L:L)>0,(L4-MIN(L:L))/(MAX(L:L)-MIN(L:L)),0)","v":{"v":0,"d":"0.00"}},{"$f":"IF(SUM(M:M)>0,(M4-MIN(M:M))/(MAX(M:M)-MIN(M:M)),0)","v":{"v":0,"d":"0.00"}},{"v":0,"d":"0.00"},{"v":0,"d":"0.00"},{"v":0,"d":"0.00"},{"v":0,"d":"0.00"}]
[{"$nulls":13},{"v":0,"d":"0.00"},{"v":0,"d":"0.00"},{"v":0,"d":"0.00"},{"v":0,"d":"0.00"},{"v":0,"d":"0.00"},{"v":0,"d":"0.00"},{"v":0,"d":"0.00"},{"v":0,"d":"0.00"},{"v":0,"d":"0.00"},{"v":0,"d":"0.00"},{"v":0,"d":"0.00"},{"v":0,"d":"0.00"},{"v":0,"d":"0.00"},{"v":0,"d":"0.00"},{"v":0,"d":"0.00"},{"v":0,"d":"0.00"},{"v":0,"d":"0.00"}]
[{"$nulls":13},{"v":0,"d":"0.00"},{"v":0,"d":"0.00"},{"v":0,"d":"0.00"},{"v":0,"d":"0.00"},{"v":0,"d":"0.00"},{"v":0,"d":"0.00"},{"v":0,"d":"0.00"},{"v":0,"d":"0.00"},{"v":0,"d":"0.00"},{"v":0,"d":"0.00"},{"v":0,"d":"0.00"},{"v":0,"d":"0.00"},{"v":0,"d":"0.00"},{"v":0,"d":"0.00"},{"v":0,"d":"0.00"},{"v":0,"d":"0.00"},{"v":0,"d":"0.00"}]
[{"$nulls":13},{"v":0,"d":"0.00"},{"v":0,"d":"0.00"},{"v":0,"d":"0.00"},{"v":0,"d":"0.00"},{"v":0,"d":"0.00"},{"v":0,"d":"0.00"},{"v":0,"d":"0.00"},{"v":0,"d":"0.00"},{"v":0,"d":"0.00"},{"v":0,"d":"0.00"},{"v":0,"d":"0.00"},{"v":0,"d":"0.00"},{"v":0,"d":"0.00"},{"v":0,"d":"0.00"},{"v":0,"d":"0.00"},{"v":0,"d":"0.00"},{"v":0,"d":"0.00"}]
[{"$nulls":13},{"v":0,"d":"0.00"},{"v":0,"d":"0.00"},{"v":0,"d":"0.00"},{"v":0,"d":"0.00"},{"v":0,"d":"0.00"},{"v":0,"d":"0.00"},{"v":0,"d":"0.00"},{"v":0,"d":"0.00"},{"$f":"IF(SUM(I:I)>0,(I8-MIN(I:I))/(MAX(I:I)-MIN(I:I)),0)","v":{"v":0,"d":"0.00"}},{"$f":"IF(SUM(J:J)>0,(J8-MIN(J:J))/(MAX(J:J)-MIN(J:J)),0)","v":{"v":0,"d":"0.00"}},{"$f":"IF(SUM(K:K)>0,(K8-MIN(K:K))/(MAX(K:K)-MIN(K:K)),0)","v":{"v":0,"d":"0.00"}},{"$f":"IF(SUM(L:L)>0,(L8-MIN(L:L))/(MAX(L:L)-MIN(L:L)),0)","v":{"v":0,"d":"0.00"}},{"$f":"IF(SUM(M:M)>0,(M8-MIN(M:M))/(MAX(M:M)-MIN(M:M)),0)","v":{"v":0,"d":"0.00"}},{"v":0,"d":"0.00"},{"v":0,"d":"0.00"},{"v":0,"d":"0.00"},{"v":0,"d":"0.00"}]
[{"$nulls":13},{"v":0,"d":"0.00"},{"v":0,"d":"0.00"},{"v":0,"d":"0.00"},{"v":0,"d":"0.00"},{"v":0,"d":"0.00"},{"v":0,"d":"0.00"},{"v":0,"d":"0.00"},{"v":0,"d":"0.00"},{"v":0,"d":"0.00"},{"v":0,"d":"0.00"},{"v":0,"d":"0.00"},{"v":0,"d":"0.00"},{"v":0,"d":"0.00"},{"v":0,"d":"0.00"},{"v":0,"d":"0.00"},{"v":0,"d":"0.00"},{"v":0,"d":"0.00"}]
[{"$nulls":13},{"v":0,"d":"0.00"},{"v":0,"d":"0.00"},{"v":0,"d":"0.00"},{"v":0,"d":"0.00"},{"v":0,"d":"0.00"},{"v":0,"d":"0.00"},{"v":0,"d":"0.00"},{"v":0,"d":"0.00"},{"v":0,"d":"0.00"},{"v":0,"d":"0.00"},{"v":0,"d":"0.00"},{"v":0,"d":"0.00"},{"v":0,"d":"0.00"},{"v":0,"d":"0.00"},{"v":0,"d":"0.00"},{"v":0,"d":"0.00"},{"v":0,"d":"0.00"}]
[{"$nulls":13},{"v":0,"d":"0.00"},{"v":0,"d":"0.00"},{"v":0,"d":"0.00"},{"v":0,"d":"0.00"},{"v":0,"d":"0.00"},{"v":0,"d":"0.00"},{"v":0,"d":"0.00"},{"v":0,"d":"0.00"},{"v":0,"d":"0.00"},{"v":0,"d":"0.00"},{"v":0,"d":"0.00"},{"v":0,"d":"0.00"},{"v":0,"d":"0.00"},{"v":0,"d":"0.00"},{"v":0,"d":"0.00"},{"v":0,"d":"0.00"},{"v":0,"d":"0.00"}]
[{"$nulls":13},{"v":0,"d":"0.00"},{"v":0,"d":"0.00"},{"v":0,"d":"0.00"},{"v":0,"d":"0.00"},{"v":0,"d":"0.00"},{"v":0,"d":"0.00"},{"v":0,"d":"0.00"},{"v":0,"d":"0.00"},{"v":0,"d":"0.00"},{"v":0,"d":"0.00"},{"v":0,"d":"0.00"},{"v":0,"d":"0.00"},{"v":0,"d":"0.00"},{"v":0,"d":"0.00"},{"v":0,"d":"0.00"},{"v":0,"d":"0.00"},{"v":0,"d":"0.00"}]
[{"$nulls":13},{"v":0,"d":"0.00"},{"v":0,"d":"0.00"},{"v":0,"d":"0.00"},{"v":0,"d":"0.00"},{"v":0,"d":"0.00"},{"v":0,"d":"0.00"},{"v":0,"d":"0.00"},{"v":0,"d":"0.00"},{"v":0,"d":"0.00"},{"v":0,"d":"0.00"},{"v":0,"d":"0.00"},{"v":0,"d":"0.00"},{"v":0,"d":"0.00"},{"v":0,"d":"0.00"},{"v":0,"d":"0.00"},{"v":0,"d":"0.00"},{"v":0,"d":"0.00"}]
[{"$nulls":13},{"v":0,"d":"0.00"},{"v":0,"d":"0.00"},{"v":0,"d":"0.00"},{"v":0,"d":"0.00"},{"v":0,"d":"0.00"},{"v":0,"d":"0.00"},{"v":0,"d":"0.00"},{"v":0,"d":"0.00"},{"v":0,"d":"0.00"},{"v":0,"d":"0.00"},{"v":0,"d":"0.00"},{"v":0,"d":"0.00"},{"v":0,"d":"0.00"},{"v":0,"d":"0.00"},{"v":0,"d":"0.00"},{"v":0,"d":"0.00"},{"v":0,"d":"0.00"}]
[{"$nulls":13},{"v":0,"d":"0.00"},{"v":0,"d":"0.00"},{"v":0,"d":"0.00"},{"v":0,"d":"0.00"},{"v":0,"d":"0.00"},{"v":0,"d":"0.00"},{"v":0,"d":"0.00"},{"v":0,"d":"0.00"},{"v":0,"d":"0.00"},{"v":0,"d":"0.00"},{"v":0,"d":"0.00"},{"v":0,"d":"0.00"},{"v":0,"d":"0.00"},{"v":0,"d":"0.00"},{"v":0,"d":"0.00"},{"v":0,"d":"0.00"},{"v":0,"d":"0.00"}]
[{"$nulls":13},{"v":0,"d":"0.00"},{"v":0,"d":"0.00"},{"v":0,"d":"0.00"},{"v":0,"d":"0.00"},{"v":0,"d":"0.00"},{"v":0,"d":"0.00"},{"v":0,"d":"0.00"},{"v":0,"d":"0.00"},{"v":0,"d":"0.00"},{"v":0,"d":"0.00"},{"v":0,"d":"0.00"},{"v":0,"d":"0.00"},{"v":0,"d":"0.00"},{"v":0,"d":"0.00"},{"v":0,"d":"0.00"},{"v":0,"d":"0.00"},{"v":0,"d":"0.00"}]
[{"$nulls":13},{"v":0,"d":"0.00"},{"v":0,"d":"0.00"},{"v":0,"d":"0.00"},{"v":0,"d":"0.00"},{"v":0,"d":"0.00"},{"v":0,"d":"0.00"},{"v":0,"d":"0.00"},{"v":0,"d":"0.00"},{"$f":"IF(SUM(I:I)>0,(I17-MIN(I:I))/(MAX(I:I)-MIN(I:I)),0)","v":{"v":0,"d":"0.00"}},{"$f":"IF(SUM(J:J)>0,(J17-MIN(J:J))/(MAX(J:J)-MIN(J:J)),0)","v":{"v":0,"d":"0.00"}},{"$f":"IF(SUM(K:K)>0,(K17-MIN(K:K))/(MAX(K:K)-MIN(K:K)),0)","v":{"v":0,"d":"0.00"}},{"$f":"IF(SUM(L:L)>0,(L17-MIN(L:L))/(MAX(L:L)-MIN(L:L)),0)","v":{"v":0,"d":"0.00"}},{"$f":"IF(SUM(M:M)>0,(M17-MIN(M:M))/(MAX(M:M)-MIN(M:M)),0)","v":{"v":0,"d":"0.00"}},{"v":0,"d":"0.00"},{"v":0,"d":"0.00"},{"v":0,"d":"0.00"},{"v":0,"d":"0.00"}]

{"sheet":"indikaattorien_painotus","index":2,"n_rows":19,"n_cols":12,"rows_kept":19}
["Täydennä sivulle oranssipohjaisin soluihin arvio kunkin indikaattorin tärkeydestä, vaihteluvälistä ja epävarmuudesta. "]
["Vesistökuormitusindeksi","yksikkö ","minimiarvo","maksimiarvo","max-min erotus","tärkeys","vaihteluväli ","epävarmuus ","kokonaispisteet","painokerroin",null,"Perustelut vaihteluvälin arviointiin: "]
["Fosforikuormitus (p_mean)","kg/km2/v ",{"$f":"MIN('indikaattori- ja indeksiarvot '!B:B)","v":{"v":0,"d":"0.00"}},{"$f":"MAX('indikaattori- ja indeksiarvot '!B:B)","v":{"v":0,"d":"0.00"}},{"$f":"D3-C3","v":{"v":0,"d":"0.00"}},3,null,1,{"$f":"F3*G3*H3","v":0},{"$f":"IF(I3>0,I3/SUM(I$3:I$6),0)","v":{"v":0,"d":"0.00"}},null,"Viitteellinen luokitus vaihteluvälin arviointiin: vähäinen (1) - ero alle 5 kg/km2/v, kohtalainen (2) - ero 5–15 kg/km2/v, suuri (3) - ero yli 15 kg/km2/v"]
["Typpikuormitus (n_mean)","kg/km2/v ",{"$f":"MIN('indikaattori- ja indeksiarvot '!C:C)","v":{"v":0,"d":"0.00"}},{"$f":"MAX('indikaattori- ja indeksiarvot '!C:C)","v":{"v":0,"d":"0.00"}},{"$f":"D4-C4","v":{"v":0,"d":"0.00"}},2,null,1,0,{"$f":"IF(I4>0,I4/SUM(I$3:I$6),0)","v":{"v":0,"d":"0.00"}},null,"Viitteellinen luokitus vaihteluvälin arviointiin: vähäinen (1) - ero alle 100 kg/km2/v, kohtalainen (2) - ero 100–300 kg/km2/v, suuri (3) - ero yli 300 kg/km2/v"]
["Orgaanisen aineen kuormitus (toc_mean)","kg/km2/v ",{"$f":"MIN('indikaattori- ja indeksiarvot '!D:D)","v":{"v":0,"d":"0.00"}},{"$f":"MAX('indikaattori- ja indeksiarvot '!D:D)","v":{"v":0,"d":"0.00"}},{"v":0,"d":"0.00"},3,null,0.8,0,{"v":0,"d":"0.00"},null,"Viitteellinen luokitus vaihteluvälin arviointiin: vähäinen (1) - ero alle 2000 kg/km2/v, kohtalainen (2) - ero 2000–6000 kg/km2/v, suuri (3) - ero yli 6000 kg/km2/v"]
["Eroosioherkkyys (eroosio_mean)","t/ha/v",{"$f":"MIN('indikaattori- ja indeksiarvot '!E:E)","v":{"v":0,"d":"0.00"}},{"$f":"MAX('indikaattori- ja indeksiarvot '!E:E)","v":{"v":0,"d":"0.00"}},{"v":0,"d":"0.00"},1,null,0.6,0,{"v":0,"d":"0.00"},{"$f":"\" yhteensä: \"&ROUND(SUM(J3:J6),2)","v":" yhteensä: 0"},"Viitteellinen luokitus vaihteluvälin arviointiin: vähäinen (1) - maksimiarvo alle kaksinkertainen minimiarvoon nähden, kohtalainen (2) - maksimiarvo kaksinkertainen-kolminkertainen minimiarvoon nähden, suuri (3) -  maksimiarvo yli kolminkertainen minimiarvoon nähden"]
["Ilmastopäästöindeksi ","yksikkö ","minimiarvo","maksimiarvo","max-min erotus","tärkeys","vaihteluväli ","epävarmuus ","kokonaispisteet","painokerroin"]
["Ojitetut turvemaat (ojitetut_turvemaat)","osuus va pinta-alasta (%)",{"$f":"MIN('indikaattori- ja indeksiarvot '!F:F)","v":{"v":0,"d":"0.00"}},{"$f":"MAX('indikaattori- ja indeksiarvot '!F:F)","v":{"v":0,"d":"0.00"}},{"$f":"D8-C8","v":{"v":0,"d":"0.00"}},1,null,1,{"$f":"F8*G8*H8","v":0},{"$f":"IF(I8>0,I8/SUM(I$8:I$10),0)","v":{"v":0,"d":"0.00"}},null,"Viitteellinen luokitus vaihteluvälin arviointiin: vähäinen (1) - ero alle 10%, kohtalainen (2) - ero 10-25%, suuri (3) - ero yli 25%"]
["Turvetuotantoalueet (Turvetuotantoalueet)","osuus va pinta-alasta (%)",{"$f":"MIN('indikaattori- ja indeksiarvot '!G:G)","v":{"v":0,"d":"0.00"}},{"$f":"MAX('indikaattori- ja indeksiarvot '!G:G)","v":{"v":0,"d":"0.00"}},{"$f":"D9-C9","v":{"v":0,"d":"0.00"}},2,null,0.8,{"$f":"F9*G9*H9","v":0},{"$f":"IF(I9>0,I9/SUM(I$8:I$10),0)","v":{"v":0,"d":"0.00"}},null,"Viitteellinen luokitus vaihteluvälin arviointiin: vähäinen (1) - ero alle 10%, kohtalainen (2) - ero 10-25%, suuri (3) - ero yli 25%"]
["Turvepellot (turvepellot)","osuus va pinta-alasta (%)",{"$f":"MIN('indikaattori- ja indeksiarvot '!H:H)","v":{"v":0,"d":"0.00"}},{"$f":"MAX('indikaattori- ja indeksiarvot '!H:H)","v":{"v":0,"d":"0.00"}},{"$f":"D10-C10","v":{"v":0,"d":"0.00"}},3,null,0.8,0,{"v":0,"d":"0.00"},{"$f":"\" yhteensä: \"&ROUND(SUM(J8:J10),2)","v":" yhteensä: 0"},"Viitteellinen luokitus vaihteluvälin arviointiin: vähäinen (1) - ero alle 10%, kohtalainen (2) - ero 10-25%, suuri (3) - ero yli 25%"]
["Sopeutumisindeksi ","yksikkö ","minimiarvo","maksimiarvo","max-min erotus","tärkeys","vaihteluväli ","epävarmuus ","kokonaispisteet","painokerroin"]
["Turvetuotanto (turvetuotantoalueet)","osuus va pinta-alasta (%)",{"$f":"MIN('indikaattori- ja indeksiarvot '!G:G)","v":{"v":0,"d":"0.00"}},{"$f":"MAX('indikaattori- ja indeksiarvot '!G:G)","v":{"v":0,"d":"0.00"}},{"$f":"D12-C12","v":{"v":0,"d":"0.00"}},1,null,0.4,{"$f":"F12*G12*H12","v":0},{"$f":"IF(I12>0,I12/SUM(I$12:I$14),0)","v":{"v":0,"d":"0.00"}},null,"Viitteellinen luokitus vaihteluvälin arviointiin: vähäinen (1) - ero alle 10%, kohtalainen (2) - ero 10-25%, suuri (3) - ero yli 25%"]
["Vedenpalautukseen soveltuvat kitu- ja joutomaat  (vesienpalautuskohteet)","kpl / va pinta-ala",{"$f":"MIN('indikaattori- ja indeksiarvot '!I:I)","v":{"v":0,"d":"0.00"}},{"$f":"MAX('indikaattori- ja indeksiarvot '!I:I)","v":{"v":0,"d":"0.00"}},{"v":0,"d":"0.00"},3,null,1,{"$f":"F13*G13*H13","v":0},{"$f":"IF(I13>0,I13/SUM(I$12:I$14),0)","v":{"v":0,"d":"0.00"}},null,"Viitteellinen luokitus vaihteluvälin arviointiin: vähäinen (1) - maksimiarvo alle kaksinkertainen minimiarvoon nähden, kohtalainen (2) - maksimiarvo kaksinkertainen-kolminkertainen minimiarvoon nähden, suuri (3) -  maksimiarvo yli kolminkertainen minimiarvoon nähden"]
["Kosteat alueet  (dtw_alle_50cm)","osuus va pinta-alasta (%)",{"$f":"MIN('indikaattori- ja indeksiarvot '!J:J)","v":{"v":0,"d":"0.00"}},{"$f":"MAX('indikaattori- ja indeksiarvot '!J:J)","v":{"v":0,"d":"0.00"}},{"v":0,"d":"0.00"},1,null,0.6,0,{"v":0,"d":"0.00"},{"$f":"\" yhteensä: \"&ROUND(SUM(J12:J14),2)","v":" yhteensä: 0"},"Viitteellinen luokitus vaihteluvälin arviointiin: vähäinen (1) - ero alle 10%, kohtalainen (2) - ero 10-25%, suuri (3) - ero yli 25%"]
["Monimuotoisuusindeksi ","yksikkö ","minimiarvo","maksimiarvo","max-min erotus","tärkeys","vaihteluväli ","epävarmuus ","kokonaispisteet","painokerroin"]
["Hyvää huonommassa tilassa olevat järvet (hyvaa_huonommat_jarvet)","osuus va pinta-alasta (%)",{"$f":"MIN('indikaattori- ja indeksiarvot '!K:K)","v":{"v":0,"d":"0.0000"}},{"$f":"MAX('indikaattori- ja indeksiarvot '!K:K)","v":{"v":0,"d":"0.0000"}},{"v":0,"d":"0.0000"},3,null,1,{"$f":"F16*G16*H16","v":0},{"$f":"IF(I16>0,I16/SUM(I$16:I$18),0)","v":{"v":0,"d":"0.00"}},null,"Viitteellinen luokitus vaihteluvälin arviointiin: mikäli alueella on valuma-alueita, joilla on hyvää huonommassa tilassa olevia kohteita ja joilla ei ole näitä (eli minimiarvo 0 ja maksimiarvo >0), voidaan vaihteluväli arvioida luokkaan suuri (3)"]
["Hyvää huonommassa tilassa olevat joet (hyvaa_huonommat_joet)","m / va pinta-ala",{"$f":"MIN('indikaattori- ja indeksiarvot '!L:L)","v":{"v":0,"d":"0.0000"}},{"$f":"MAX('indikaattori- ja indeksiarvot '!L:L)","v":{"v":0,"d":"0.0000"}},{"v":0,"d":"0.0000"},3,null,1,{"$f":"F17*G17*H17","v":0},{"$f":"IF(I17>0,I17/SUM(I$16:I$18),0)","v":{"v":0,"d":"0.00"}},null,"Viitteellinen luokitus vaihteluvälin arviointiin: mikäli alueella on valuma-alueita, joilla on hyvää huonommassa tilassa olevia kohteita ja joilla ei ole näitä (eli minimiarvo 0 ja maksimiarvo >0), voidaan vaihteluväli arvioida luokkaan suuri (3)"]
["Purohelmi-aineisto (purohelmi_lt_alle50)","osuus pituudesta",{"$f":"MIN('indikaattori- ja indeksiarvot '!M:M)","v":{"v":0,"d":"0.0000"}},{"$f":"MAX('indikaattori- ja indeksiarvot '!M:M)","v":{"v":0,"d":"0.0000"}},{"v":0,"d":"0.0000"},3,null,0.8,0,{"v":0,"d":"0.00"},{"$f":"\" yhteensä: \"&ROUND(SUM(J16:J18),2)","v":" yhteensä: 0"},"Viitteellinen luokitus vaihteluvälin arviointiin: mikäli alueella on valuma-alueita, joilla on purohelmi_lt_alle50-kohteita ja joilla ei ole näitä (eli minimiarvo 0 ja maksimiarvo >0), voidaan vaihteluväli arvioida luokkaan suuri (3)"]
[null,"(va=valuma-alue)"]

{"sheet":"perustelut_painotukselle","index":3,"n_rows":13,"n_cols":1,"rows_kept":13}
["Painotuksen tueksi indikaattorien tärkeydelle ja epävarmuudelle on annettu viittelliset arvot (välilehdellä indikaattorien_painotus). Näitä arvoja voi muuttaa tarkasteltavan alueen ja suunnitelman tavoitteiden mukaisesti. "]
[]
["Perustelut indikaattorien tärkeydelle (arvot esimerkkipohjassa)"]
["Kuormitusindeksi: Fosforikuormitus on usein sisävesissä rehevöitymistä rajoittava tekijä, joten se on arvioitu typpeä tärkeämmäksi. Orgaanisen aineen kuormitus taas on merkittävä vesistöjen tummumista lisäävä tekijä.  Eroosio ja fosforikuormitus ovat linkittyneitä toisiinsa ja usein painottuvat samoille alueille. Eroosioherkkyydelle annetaan näin ollen pienempi tärkeys ettei korostettaisi näitä alueita liikaa. "]
["Ilmastopäästöindeksi: Suomessa suurimmat ilmastopäästöt näistä kolmesta vaihtoehdosta tulevat pinta-alayksikköä kohden turvepelloilta, tämän jälkeen turvetuotantoalueilta ja ojitetuilta turvemailta. Tärkeys on valittu tämän mukaan."]
["Sopeutumisindeksi: Kitu- ja joutomaa-aineisto kuvaa hyvin veden pidätykseen mahdollisesti soveltuvia alueita kitu- ja joutomailla . Kosteat alueet ovat potentiaalisia paikkoja vedenpidätyksella, mutta myös muita tekijöitä tulee ottaa huomioon. Turvetuotantoalueista taas vain osa sopii vedenpalautukseen ja jokainen paikka pitää arvioida tapauskohtaisesti."]
["Monimuotoisuusindeksi: Huonossa ekologisessa tilassa olevat järvet ja joet ja luonnontilaltaan muuttuneet pienvedet on kaikki arvioitu tärkeiksi indikaattoreiksi."]
[]
["Perustelut indikaattorien epävarmuudelle (arvot esimerkkipohjassa)"]
["Kuormitusindeksi: Fosfori- ja typpikuormitukset ovat WSFS-Vemala mallin tuloksia, joten ne kuvaavat hyvin alueen ravinnekuormitusta. Orgaanisen aineen kuormituksen mallinnuksessa Vemala-mallissa on taas enemmän epävarmuuksia. Eroosio ei suoraan kuvaa alueelta tulevaa kuormitusta, joten sen epävarmuus on suurempi."]
["Ilmastopäästöindeksi: Soiden ojitustilanne-aineisto kuvaa melko luotettavasti ojitettujen turvemaiden esiintymistä. Aineistosta saatavat tiedot  turvetuotantoalueista eivät välttämättä ole ajantasaisia, on mahdollista, että turvetuotantoalue on poistettu käytöstä tai siirretty jatkokäyttöön kuten maanviljelyyn. Turvepellot aineisto on yhdistetty kahdesta paikkatietoaineistosta (Soiden ojitustilanne ja peltolohkorekisteri), mikä lisää epävarmuutta. "]
["Sopeutumisindeksi: Kitu ja joutomaa-aineisto perustuu valtakunnallisiin paikkatietoaineistoihin ja virtausverkkoon, joten sen epävarmuus on suhteellisen pientä verrattuna muihin aineistoihin. DTW-rasterien pikselikoko on 8 x 8m, joten niiden spatiaalinen tarkkuus voidaan arvioida hieman epätarkemmaksi.   Soiden ojitustilanne- aineistosta saatavat tiedot  turvetuotantoalueista eivät välttämättä ole ajantasaisia, on mahdollista, että turvetuotantoalue on poistettu käytöstä tai siirretty jatkokäyttöön kuten maanviljelyyn."]
["Monimuotoisuusindeksi: Hyvää huonommassa tilassa olevat joet ja järvet on luokiteltu yksitellen asiantuntijatyönä kun taas Purohelmi-aineisto on mallinnus, jolloin siihen sisältyy enemmän epävarmuuksia "]

{"sheet":"kuvaaja_vesistokuormitusind ","index":4,"n_rows":18,"n_cols":11,"rows_kept":18}
["Jos kaikki valuma-alueet eivät näy kuvaajassa (tai jos näkyy tyhjiä), tarkista, alla olevien taulukoiden kaavat on kopioitu yhtä monelle riville kun osavaluma-alueita on. "]
["Nämä painotetut indikaattorien arvot tulevat välilehdeltä \"indikaattori- ja indeksiarvot\".",{"$nulls":4},"Tässä taulukko järjestää osavaluma-alueet automaattisesti indeksiarvon mukaan "]
["painotettu_p_mean","painotettu_n_mean","painotettu_toc_mean","painotettu_eroosio_mean","vesistökuormitusindeksi","järjestysnro","painotettu_p_mean","painotettu_n_mean","painotettu_toc_mean","painotettu_eroosio_mean","vesistökuormitusindeksi"]
[{"$f":"'indikaattori- ja indeksiarvot '!N3*'indikaattori- ja indeksiarvot '!N$1","v":{"v":0,"d":"0.00"}},{"$f":"'indikaattori- ja indeksiarvot '!O3*'indikaattori- ja indeksiarvot '!O$1","v":{"v":0,"d":"0.00"}},{"$f":"'indikaattori- ja indeksiarvot '!P3*'indikaattori- ja indeksiarvot '!P$1","v":{"v":0,"d":"0.00"}},{"$f":"'indikaattori- ja indeksiarvot '!Q3*'indikaattori- ja indeksiarvot '!Q$1","v":{"v":0,"d":"0.00"}},{"$f":"SUM(A4:D4)","v":{"v":0,"d":"0.00"}},1,{"$f":"_xlfn._xlws.SORT(A4:E18,5,-1)","v":{"v":0,"d":"0.00"}},{"v":0,"d":"0.00"},{"v":0,"d":"0.00"},{"v":0,"d":"0.00"},{"v":0,"d":"0.00"}]
[{"$f":"'indikaattori- ja indeksiarvot '!N4*'indikaattori- ja indeksiarvot '!N$1","v":{"v":0,"d":"0.00"}},{"$f":"'indikaattori- ja indeksiarvot '!O4*'indikaattori- ja indeksiarvot '!O$1","v":{"v":0,"d":"0.00"}},{"$f":"'indikaattori- ja indeksiarvot '!P4*'indikaattori- ja indeksiarvot '!P$1","v":{"v":0,"d":"0.00"}},{"$f":"'indikaattori- ja indeksiarvot '!Q4*'indikaattori- ja indeksiarvot '!Q$1","v":{"v":0,"d":"0.00"}},{"$f":"SUM(A5:D5)","v":{"v":0,"d":"0.00"}},2,{"v":0,"d":"0.00"},{"v":0,"d":"0.00"},{"v":0,"d":"0.00"},{"v":0,"d":"0.00"},{"v":0,"d":"0.00"}]
[{"$f":"'indikaattori- ja indeksiarvot '!N5*'indikaattori- ja indeksiarvot '!N$1","v":{"v":0,"d":"0.00"}},{"$f":"'indikaattori- ja indeksiarvot '!O5*'indikaattori- ja indeksiarvot '!O$1","v":{"v":0,"d":"0.00"}},{"$f":"'indikaattori- ja indeksiarvot '!P5*'indikaattori- ja indeksiarvot '!P$1","v":{"v":0,"d":"0.00"}},{"$f":"'indikaattori- ja indeksiarvot '!Q5*'indikaattori- ja indeksiarvot '!Q$1","v":{"v":0,"d":"0.00"}},{"v":0,"d":"0.00"},3,{"v":0,"d":"0.00"},{"v":0,"d":"0.00"},{"v":0,"d":"0.00"},{"v":0,"d":"0.00"},{"v":0,"d":"0.00"}]
[{"$f":"'indikaattori- ja indeksiarvot '!N6*'indikaattori- ja indeksiarvot '!N$1","v":{"v":0,"d":"0.00"}},{"$f":"'indikaattori- ja indeksiarvot '!O6*'indikaattori- ja indeksiarvot '!O$1","v":{"v":0,"d":"0.00"}},{"$f":"'indikaattori- ja indeksiarvot '!P6*'indikaattori- ja indeksiarvot '!P$1","v":{"v":0,"d":"0.00"}},{"$f":"'indikaattori- ja indeksiarvot '!Q6*'indikaattori- ja indeksiarvot '!Q$1","v":{"v":0,"d":"0.00"}},{"v":0,"d":"0.00"},4,{"v":0,"d":"0.00"},{"v":0,"d":"0.00"},{"v":0,"d":"0.00"},{"v":0,"d":"0.00"},{"v":0,"d":"0.00"}]
[{"$f":"'indikaattori- ja indeksiarvot '!N7*'indikaattori- ja indeksiarvot '!N$1","v":{"v":0,"d":"0.00"}},{"$f":"'indikaattori- ja indeksiarvot '!O7*'indikaattori- ja indeksiarvot '!O$1","v":{"v":0,"d":"0.00"}},{"$f":"'indikaattori- ja indeksiarvot '!P7*'indikaattori- ja indeksiarvot '!P$1","v":{"v":0,"d":"0.00"}},{"$f":"'indikaattori- ja indeksiarvot '!Q7*'indikaattori- ja indeksiarvot '!Q$1","v":{"v":0,"d":"0.00"}},{"v":0,"d":"0.00"},5,{"v":0,"d":"0.00"},{"v":0,"d":"0.00"},{"v":0,"d":"0.00"},{"v":0,"d":"0.00"},{"v":0,"d":"0.00"}]
[{"$f":"'indikaattori- ja indeksiarvot '!N8*'indikaattori- ja indeksiarvot '!N$1","v":{"v":0,"d":"0.00"}},{"$f":"'indikaattori- ja indeksiarvot '!O8*'indikaattori- ja indeksiarvot '!O$1","v":{"v":0,"d":"0.00"}},{"$f":"'indikaattori- ja indeksiarvot '!P8*'indikaattori- ja indeksiarvot '!P$1","v":{"v":0,"d":"0.00"}},{"$f":"'indikaattori- ja indeksiarvot '!Q8*'indikaattori- ja indeksiarvot '!Q$1","v":{"v":0,"d":"0.00"}},{"v":0,"d":"0.00"},6,{"v":0,"d":"0.00"},{"v":0,"d":"0.00"},{"v":0,"d":"0.00"},{"v":0,"d":"0.00"},{"v":0,"d":"0.00"}]
[{"$f":"'indikaattori- ja indeksiarvot '!N9*'indikaattori- ja indeksiarvot '!N$1","v":{"v":0,"d":"0.00"}},{"$f":"'indikaattori- ja indeksiarvot '!O9*'indikaattori- ja indeksiarvot '!O$1","v":{"v":0,"d":"0.00"}},{"$f":"'indikaattori- ja indeksiarvot '!P9*'indikaattori- ja indeksiarvot '!P$1","v":{"v":0,"d":"0.00"}},{"$f":"'indikaattori- ja indeksiarvot '!Q9*'indikaattori- ja indeksiarvot '!Q$1","v":{"v":0,"d":"0.00"}},{"v":0,"d":"0.00"},7,{"v":0,"d":"0.00"},{"v":0,"d":"0.00"},{"v":0,"d":"0.00"},{"v":0,"d":"0.00"},{"v":0,"d":"0.00"}]
[{"$f":"'indikaattori- ja indeksiarvot '!N10*'indikaattori- ja indeksiarvot '!N$1","v":{"v":0,"d":"0.00"}},{"$f":"'indikaattori- ja indeksiarvot '!O10*'indikaattori- ja indeksiarvot '!O$1","v":{"v":0,"d":"0.00"}},{"$f":"'indikaattori- ja indeksiarvot '!P10*'indikaattori- ja indeksiarvot '!P$1","v":{"v":0,"d":"0.00"}},{"$f":"'indikaattori- ja indeksiarvot '!Q10*'indikaattori- ja indeksiarvot '!Q$1","v":{"v":0,"d":"0.00"}},{"v":0,"d":"0.00"},8,{"v":0,"d":"0.00"},{"v":0,"d":"0.00"},{"v":0,"d":"0.00"},{"v":0,"d":"0.00"},{"v":0,"d":"0.00"}]
[{"$f":"'indikaattori- ja indeksiarvot '!N11*'indikaattori- ja indeksiarvot '!N$1","v":{"v":0,"d":"0.00"}},{"$f":"'indikaattori- ja indeksiarvot '!O11*'indikaattori- ja indeksiarvot '!O$1","v":{"v":0,"d":"0.00"}},{"$f":"'indikaattori- ja indeksiarvot '!P11*'indikaattori- ja indeksiarvot '!P$1","v":{"v":0,"d":"0.00"}},{"$f":"'indikaattori- ja indeksiarvot '!Q11*'indikaattori- ja indeksiarvot '!Q$1","v":{"v":0,"d":"0.00"}},{"v":0,"d":"0.00"},9,{"v":0,"d":"0.00"},{"v":0,"d":"0.00"},{"v":0,"d":"0.00"},{"v":0,"d":"0.00"},{"v":0,"d":"0.00"}]
[{"$f":"'indikaattori- ja indeksiarvot '!N12*'indikaattori- ja indeksiarvot '!N$1","v":{"v":0,"d":"0.00"}},{"$f":"'indikaattori- ja indeksiarvot '!O12*'indikaattori- ja indeksiarvot '!O$1","v":{"v":0,"d":"0.00"}},{"$f":"'indikaattori- ja indeksiarvot '!P12*'indikaattori- ja indeksiarvot '!P$1","v":{"v":0,"d":"0.00"}},{"$f":"'indikaattori- ja indeksiarvot '!Q12*'indikaattori- ja indeksiarvot '!Q$1","v":{"v":0,"d":"0.00"}},{"v":0,"d":"0.00"},10,{"v":0,"d":"0.00"},{"v":0,"d":"0.00"},{"v":0,"d":"0.00"},{"v":0,"d":"0.00"},{"v":0,"d":"0.00"}]
[{"$f":"'indikaattori- ja indeksiarvot '!N13*'indikaattori- ja indeksiarvot '!N$1","v":{"v":0,"d":"0.00"}},{"$f":"'indikaattori- ja indeksiarvot '!O13*'indikaattori- ja indeksiarvot '!O$1","v":{"v":0,"d":"0.00"}},{"$f":"'indikaattori- ja indeksiarvot '!P13*'indikaattori- ja indeksiarvot '!P$1","v":{"v":0,"d":"0.00"}},{"$f":"'indikaattori- ja indeksiarvot '!Q13*'indikaattori- ja indeksiarvot '!Q$1","v":{"v":0,"d":"0.00"}},{"v":0,"d":"0.00"},11,{"v":0,"d":"0.00"},{"v":0,"d":"0.00"},{"v":0,"d":"0.00"},{"v":0,"d":"0.00"},{"v":0,"d":"0.00"}]
[{"$f":"'indikaattori- ja indeksiarvot '!N14*'indikaattori- ja indeksiarvot '!N$1","v":{"v":0,"d":"0.00"}},{"$f":"'indikaattori- ja indeksiarvot '!O14*'indikaattori- ja indeksiarvot '!O$1","v":{"v":0,"d":"0.00"}},{"$f":"'indikaattori- ja indeksiarvot '!P14*'indikaattori- ja indeksiarvot '!P$1","v":{"v":0,"d":"0.00"}},{"$f":"'indikaattori- ja indeksiarvot '!Q14*'indikaattori- ja indeksiarvot '!Q$1","v":{"v":0,"d":"0.00"}},{"v":0,"d":"0.00"},12,{"v":0,"d":"0.00"},{"v":0,"d":"0.00"},{"v":0,"d":"0.00"},{"v":0,"d":"0.00"},{"v":0,"d":"0.00"}]
[{"$f":"'indikaattori- ja indeksiarvot '!N15*'indikaattori- ja indeksiarvot '!N$1","v":{"v":0,"d":"0.00"}},{"$f":"'indikaattori- ja indeksiarvot '!O15*'indikaattori- ja indeksiarvot '!O$1","v":{"v":0,"d":"0.00"}},{"$f":"'indikaattori- ja indeksiarvot '!P15*'indikaattori- ja indeksiarvot '!P$1","v":{"v":0,"d":"0.00"}},{"$f":"'indikaattori- ja indeksiarvot '!Q15*'indikaattori- ja indeksiarvot '!Q$1","v":{"v":0,"d":"0.00"}},{"v":0,"d":"0.00"},13,{"v":0,"d":"0.00"},{"v":0,"d":"0.00"},{"v":0,"d":"0.00"},{"v":0,"d":"0.00"},{"v":0,"d":"0.00"}]
[{"$f":"'indikaattori- ja indeksiarvot '!N16*'indikaattori- ja indeksiarvot '!N$1","v":{"v":0,"d":"0.00"}},{"$f":"'indikaattori- ja indeksiarvot '!O16*'indikaattori- ja indeksiarvot '!O$1","v":{"v":0,"d":"0.00"}},{"$f":"'indikaattori- ja indeksiarvot '!P16*'indikaattori- ja indeksiarvot '!P$1","v":{"v":0,"d":"0.00"}},{"$f":"'indikaattori- ja indeksiarvot '!Q16*'indikaattori- ja indeksiarvot '!Q$1","v":{"v":0,"d":"0.00"}},{"v":0,"d":"0.00"},14,{"v":0,"d":"0.00"},{"v":0,"d":"0.00"},{"v":0,"d":"0.00"},{"v":0,"d":"0.00"},{"v":0,"d":"0.00"}]
[{"$f":"'indikaattori- ja indeksiarvot '!N17*'indikaattori- ja indeksiarvot '!N$1","v":{"v":0,"d":"0.00"}},{"$f":"'indikaattori- ja indeksiarvot '!O17*'indikaattori- ja indeksiarvot '!O$1","v":{"v":0,"d":"0.00"}},{"$f":"'indikaattori- ja indeksiarvot '!P17*'indikaattori- ja indeksiarvot '!P$1","v":{"v":0,"d":"0.00"}},{"$f":"'indikaattori- ja indeksiarvot '!Q17*'indikaattori- ja indeksiarvot '!Q$1","v":{"v":0,"d":"0.00"}},{"v":0,"d":"0.00"},15,{"v":0,"d":"0.00"},{"v":0,"d":"0.00"},{"v":0,"d":"0.00"},{"v":0,"d":"0.00"},{"v":0,"d":"0.00"}]

{"sheet":"kuvaaja_ilmastopaastoindeksi","index":5,"n_rows":18,"n_cols":9,"rows_kept":18}
["Jos kaikki valuma-alueet eivät näy kuvaajassa (tai jos näkyy tyhjiä), tarkista, alla olevien taulukoiden kaavat on kopioitu yhtä monelle riville kun osavaluma-alueita on. "]
["Nämä painotetut indikaattorien arvot tulevat välilehdeltä \"indikaattori- ja indeksiarvot\".",{"$nulls":3},"Tässä taulukko järjestää osavaluma-alueet automaattisesti indeksiarvon mukaan "]
["skaalattu_ojitetut_turvemaat","skaalattu_turvetuotantoalueet_(ilmastopaastoindeksi)","skaalattu_turvepellot","ilmastopäästöindeksi","järjestysnro","skaalattu_ojitetut_turvemaat","skaalattu_turvetuotantoalueet_(ilmastopaastoindeksi)","skaalattu_turvepellot","ilmastopäästöindeksi"]
[{"$f":"'indikaattori- ja indeksiarvot '!R3*'indikaattori- ja indeksiarvot '!R$1","v":{"v":0,"d":"0.00"}},{"$f":"'indikaattori- ja indeksiarvot '!S3*'indikaattori- ja indeksiarvot '!S$1","v":{"v":0,"d":"0.00"}},{"$f":"'indikaattori- ja indeksiarvot '!T3*'indikaattori- ja indeksiarvot '!T$1","v":{"v":0,"d":"0.00"}},{"$f":"SUM(A4:C4)","v":{"v":0,"d":"0.00"}},1,{"$f":"_xlfn._xlws.SORT(A4:D18,4,-1)","v":{"v":0,"d":"0.00"}},{"v":0,"d":"0.00"},{"v":0,"d":"0.00"},{"v":0,"d":"0.00"}]
[{"$f":"'indikaattori- ja indeksiarvot '!R4*'indikaattori- ja indeksiarvot '!R$1","v":{"v":0,"d":"0.00"}},{"$f":"'indikaattori- ja indeksiarvot '!S4*'indikaattori- ja indeksiarvot '!S$1","v":{"v":0,"d":"0.00"}},{"$f":"'indikaattori- ja indeksiarvot '!T4*'indikaattori- ja indeksiarvot '!T$1","v":{"v":0,"d":"0.00"}},{"v":0,"d":"0.00"},2,{"v":0,"d":"0.00"},{"v":0,"d":"0.00"},{"v":0,"d":"0.00"},{"v":0,"d":"0.00"}]
[{"$f":"'indikaattori- ja indeksiarvot '!R5*'indikaattori- ja indeksiarvot '!R$1","v":{"v":0,"d":"0.00"}},{"$f":"'indikaattori- ja indeksiarvot '!S5*'indikaattori- ja indeksiarvot '!S$1","v":{"v":0,"d":"0.00"}},{"$f":"'indikaattori- ja indeksiarvot '!T5*'indikaattori- ja indeksiarvot '!T$1","v":{"v":0,"d":"0.00"}},{"v":0,"d":"0.00"},3,{"v":0,"d":"0.00"},{"v":0,"d":"0.00"},{"v":0,"d":"0.00"},{"v":0,"d":"0.00"}]
[{"$f":"'indikaattori- ja indeksiarvot '!R6*'indikaattori- ja indeksiarvot '!R$1","v":{"v":0,"d":"0.00"}},{"$f":"'indikaattori- ja indeksiarvot '!S6*'indikaattori- ja indeksiarvot '!S$1","v":{"v":0,"d":"0.00"}},{"$f":"'indikaattori- ja indeksiarvot '!T6*'indikaattori- ja indeksiarvot '!T$1","v":{"v":0,"d":"0.00"}},{"v":0,"d":"0.00"},4,{"v":0,"d":"0.00"},{"v":0,"d":"0.00"},{"v":0,"d":"0.00"},{"v":0,"d":"0.00"}]
[{"$f":"'indikaattori- ja indeksiarvot '!R7*'indikaattori- ja indeksiarvot '!R$1","v":{"v":0,"d":"0.00"}},{"$f":"'indikaattori- ja indeksiarvot '!S7*'indikaattori- ja indeksiarvot '!S$1","v":{"v":0,"d":"0.00"}},{"$f":"'indikaattori- ja indeksiarvot '!T7*'indikaattori- ja indeksiarvot '!T$1","v":{"v":0,"d":"0.00"}},{"v":0,"d":"0.00"},5,{"v":0,"d":"0.00"},{"v":0,"d":"0.00"},{"v":0,"d":"0.00"},{"v":0,"d":"0.00"}]
[{"$f":"'indikaattori- ja indeksiarvot '!R8*'indikaattori- ja indeksiarvot '!R$1","v":{"v":0,"d":"0.00"}},{"$f":"'indikaattori- ja indeksiarvot '!S8*'indikaattori- ja indeksiarvot '!S$1","v":{"v":0,"d":"0.00"}},{"$f":"'indikaattori- ja indeksiarvot '!T8*'indikaattori- ja indeksiarvot '!T$1","v":{"v":0,"d":"0.00"}},{"v":0,"d":"0.00"},6,{"v":0,"d":"0.00"},{"v":0,"d":"0.00"},{"v":0,"d":"0.00"},{"v":0,"d":"0.00"}]
[{"$f":"'indikaattori- ja indeksiarvot '!R9*'indikaattori- ja indeksiarvot '!R$1","v":{"v":0,"d":"0.00"}},{"$f":"'indikaattori- ja indeksiarvot '!S9*'indikaattori- ja indeksiarvot '!S$1","v":{"v":0,"d":"0.00"}},{"$f":"'indikaattori- ja indeksiarvot '!T9*'indikaattori- ja indeksiarvot '!T$1","v":{"v":0,"d":"0.00"}},{"v":0,"d":"0.00"},7,{"v":0,"d":"0.00"},{"v":0,"d":"0.00"},{"v":0,"d":"0.00"},{"v":0,"d":"0.00"}]
[{"$f":"'indikaattori- ja indeksiarvot '!R10*'indikaattori- ja indeksiarvot '!R$1","v":{"v":0,"d":"0.00"}},{"$f":"'indikaattori- ja indeksiarvot '!S10*'indikaattori- ja indeksiarvot '!S$1","v":{"v":0,"d":"0.00"}},{"$f":"'indikaattori- ja indeksiarvot '!T10*'indikaattori- ja indeksiarvot '!T$1","v":{"v":0,"d":"0.00"}},{"v":0,"d":"0.00"},8,{"v":0,"d":"0.00"},{"v":0,"d":"0.00"},{"v":0,"d":"0.00"},{"v":0,"d":"0.00"}]
[{"$f":"'indikaattori- ja indeksiarvot '!R11*'indikaattori- ja indeksiarvot '!R$1","v":{"v":0,"d":"0.00"}},{"$f":"'indikaattori- ja indeksiarvot '!S11*'indikaattori- ja indeksiarvot '!S$1","v":{"v":0,"d":"0.00"}},{"$f":"'indikaattori- ja indeksiarvot '!T11*'indikaattori- ja indeksiarvot '!T$1","v":{"v":0,"d":"0.00"}},{"v":0,"d":"0.00"},9,{"v":0,"d":"0.00"},{"v":0,"d":"0.00"},{"v":0,"d":"0.00"},{"v":0,"d":"0.00"}]
[{"$f":"'indikaattori- ja indeksiarvot '!R12*'indikaattori- ja indeksiarvot '!R$1","v":{"v":0,"d":"0.00"}},{"$f":"'indikaattori- ja indeksiarvot '!S12*'indikaattori- ja indeksiarvot '!S$1","v":{"v":0,"d":"0.00"}},{"$f":"'indikaattori- ja indeksiarvot '!T12*'indikaattori- ja indeksiarvot '!T$1","v":{"v":0,"d":"0.00"}},{"v":0,"d":"0.00"},10,{"v":0,"d":"0.00"},{"v":0,"d":"0.00"},{"v":0,"d":"0.00"},{"v":0,"d":"0.00"}]
[{"$f":"'indikaattori- ja indeksiarvot '!R13*'indikaattori- ja indeksiarvot '!R$1","v":{"v":0,"d":"0.00"}},{"$f":"'indikaattori- ja indeksiarvot '!S13*'indikaattori- ja indeksiarvot '!S$1","v":{"v":0,"d":"0.00"}},{"$f":"'indikaattori- ja indeksiarvot '!T13*'indikaattori- ja indeksiarvot '!T$1","v":{"v":0,"d":"0.00"}},{"v":0,"d":"0.00"},11,{"v":0,"d":"0.00"},{"v":0,"d":"0.00"},{"v":0,"d":"0.00"},{"v":0,"d":"0.00"}]
[{"$f":"'indikaattori- ja indeksiarvot '!R14*'indikaattori- ja indeksiarvot '!R$1","v":{"v":0,"d":"0.00"}},{"$f":"'indikaattori- ja indeksiarvot '!S14*'indikaattori- ja indeksiarvot '!S$1","v":{"v":0,"d":"0.00"}},{"$f":"'indikaattori- ja indeksiarvot '!T14*'indikaattori- ja indeksiarvot '!T$1","v":{"v":0,"d":"0.00"}},{"v":0,"d":"0.00"},12,{"v":0,"d":"0.00"},{"v":0,"d":"0.00"},{"v":0,"d":"0.00"},{"v":0,"d":"0.00"}]
[{"$f":"'indikaattori- ja indeksiarvot '!R15*'indikaattori- ja indeksiarvot '!R$1","v":{"v":0,"d":"0.00"}},{"$f":"'indikaattori- ja indeksiarvot '!S15*'indikaattori- ja indeksiarvot '!S$1","v":{"v":0,"d":"0.00"}},{"$f":"'indikaattori- ja indeksiarvot '!T15*'indikaattori- ja indeksiarvot '!T$1","v":{"v":0,"d":"0.00"}},{"v":0,"d":"0.00"},13,{"v":0,"d":"0.00"},{"v":0,"d":"0.00"},{"v":0,"d":"0.00"},{"v":0,"d":"0.00"}]
[{"$f":"'indikaattori- ja indeksiarvot '!R16*'indikaattori- ja indeksiarvot '!R$1","v":{"v":0,"d":"0.00"}},{"$f":"'indikaattori- ja indeksiarvot '!S16*'indikaattori- ja indeksiarvot '!S$1","v":{"v":0,"d":"0.00"}},{"$f":"'indikaattori- ja indeksiarvot '!T16*'indikaattori- ja indeksiarvot '!T$1","v":{"v":0,"d":"0.00"}},{"v":0,"d":"0.00"},14,{"v":0,"d":"0.00"},{"v":0,"d":"0.00"},{"v":0,"d":"0.00"},{"v":0,"d":"0.00"}]
[{"$f":"'indikaattori- ja indeksiarvot '!R17*'indikaattori- ja indeksiarvot '!R$1","v":{"v":0,"d":"0.00"}},{"$f":"'indikaattori- ja indeksiarvot '!S17*'indikaattori- ja indeksiarvot '!S$1","v":{"v":0,"d":"0.00"}},{"$f":"'indikaattori- ja indeksiarvot '!T17*'indikaattori- ja indeksiarvot '!T$1","v":{"v":0,"d":"0.00"}},{"v":0,"d":"0.00"},15,{"v":0,"d":"0.00"},{"v":0,"d":"0.00"},{"v":0,"d":"0.00"},{"v":0,"d":"0.00"}]

{"sheet":"kuvaaja_sopeutumisindeksi","index":6,"n_rows":18,"n_cols":9,"rows_kept":18}
["Jos kaikki valuma-alueet eivät näy kuvaajassa (tai jos näkyy tyhjiä), tarkista, alla olevien taulukoiden kaavat on kopioitu yhtä monelle riville kun osavaluma-alueita on. "]
["Nämä painotetut indikaattorien arvot tulevat välilehdeltä \"indikaattori- ja indeksiarvot\".",{"$nulls":3},"Tässä taulukko järjestää osavaluma-alueet automaattisesti indeksiarvon mukaan "]
["painotettu_turvetuotantoalueet_(sopeutumisindeksi)","painotettu_vesienpalautuskohteet","painotettu_dtw_alle_50cm","sopeutumisindeksi ","järjestysnro","painotettu_turvetuotantoalueet_(sopeutumisindeksi)","painotettu_vesienpalautuskohteet","painotettu_dtw_alle_50cm","sopeutumisindeksi "]
[{"$f":"'indikaattori- ja indeksiarvot '!U3*'indikaattori- ja indeksiarvot '!U$1","v":{"v":0,"d":"0.00"}},{"$f":"'indikaattori- ja indeksiarvot '!V3*'indikaattori- ja indeksiarvot '!V$1","v":{"v":0,"d":"0.00"}},{"$f":"'indikaattori- ja indeksiarvot '!W3*'indikaattori- ja indeksiarvot '!W$1","v":{"v":0,"d":"0.00"}},{"$f":"SUM(A4:C4)","v":{"v":0,"d":"0.00"}},1,{"$f":"_xlfn._xlws.SORT(A4:D18,4,-1)","v":{"v":0,"d":"0.00"}},{"v":0,"d":"0.00"},{"v":0,"d":"0.00"},{"v":0,"d":"0.00"}]
[{"$f":"'indikaattori- ja indeksiarvot '!U4*'indikaattori- ja indeksiarvot '!U$1","v":{"v":0,"d":"0.00"}},{"$f":"'indikaattori- ja indeksiarvot '!V4*'indikaattori- ja indeksiarvot '!V$1","v":{"v":0,"d":"0.00"}},{"$f":"'indikaattori- ja indeksiarvot '!W4*'indikaattori- ja indeksiarvot '!W$1","v":{"v":0,"d":"0.00"}},{"v":0,"d":"0.00"},2,{"v":0,"d":"0.00"},{"v":0,"d":"0.00"},{"v":0,"d":"0.00"},{"v":0,"d":"0.00"}]
[{"$f":"'indikaattori- ja indeksiarvot '!U5*'indikaattori- ja indeksiarvot '!U$1","v":{"v":0,"d":"0.00"}},{"$f":"'indikaattori- ja indeksiarvot '!V5*'indikaattori- ja indeksiarvot '!V$1","v":{"v":0,"d":"0.00"}},{"$f":"'indikaattori- ja indeksiarvot '!W5*'indikaattori- ja indeksiarvot '!W$1","v":{"v":0,"d":"0.00"}},{"v":0,"d":"0.00"},3,{"v":0,"d":"0.00"},{"v":0,"d":"0.00"},{"v":0,"d":"0.00"},{"v":0,"d":"0.00"}]
[{"$f":"'indikaattori- ja indeksiarvot '!U6*'indikaattori- ja indeksiarvot '!U$1","v":{"v":0,"d":"0.00"}},{"$f":"'indikaattori- ja indeksiarvot '!V6*'indikaattori- ja indeksiarvot '!V$1","v":{"v":0,"d":"0.00"}},{"$f":"'indikaattori- ja indeksiarvot '!W6*'indikaattori- ja indeksiarvot '!W$1","v":{"v":0,"d":"0.00"}},{"v":0,"d":"0.00"},4,{"v":0,"d":"0.00"},{"v":0,"d":"0.00"},{"v":0,"d":"0.00"},{"v":0,"d":"0.00"}]
[{"$f":"'indikaattori- ja indeksiarvot '!U7*'indikaattori- ja indeksiarvot '!U$1","v":{"v":0,"d":"0.00"}},{"$f":"'indikaattori- ja indeksiarvot '!V7*'indikaattori- ja indeksiarvot '!V$1","v":{"v":0,"d":"0.00"}},{"$f":"'indikaattori- ja indeksiarvot '!W7*'indikaattori- ja indeksiarvot '!W$1","v":{"v":0,"d":"0.00"}},{"v":0,"d":"0.00"},5,{"v":0,"d":"0.00"},{"v":0,"d":"0.00"},{"v":0,"d":"0.00"},{"v":0,"d":"0.00"}]
[{"$f":"'indikaattori- ja indeksiarvot '!U8*'indikaattori- ja indeksiarvot '!U$1","v":{"v":0,"d":"0.00"}},{"$f":"'indikaattori- ja indeksiarvot '!V8*'indikaattori- ja indeksiarvot '!V$1","v":{"v":0,"d":"0.00"}},{"$f":"'indikaattori- ja indeksiarvot '!W8*'indikaattori- ja indeksiarvot '!W$1","v":{"v":0,"d":"0.00"}},{"v":0,"d":"0.00"},6,{"v":0,"d":"0.00"},{"v":0,"d":"0.00"},{"v":0,"d":"0.00"},{"v":0,"d":"0.00"}]
[{"$f":"'indikaattori- ja indeksiarvot '!U9*'indikaattori- ja indeksiarvot '!U$1","v":{"v":0,"d":"0.00"}},{"$f":"'indikaattori- ja indeksiarvot '!V9*'indikaattori- ja indeksiarvot '!V$1","v":{"v":0,"d":"0.00"}},{"$f":"'indikaattori- ja indeksiarvot '!W9*'indikaattori- ja indeksiarvot '!W$1","v":{"v":0,"d":"0.00"}},{"v":0,"d":"0.00"},7,{"v":0,"d":"0.00"},{"v":0,"d":"0.00"},{"v":0,"d":"0.00"},{"v":0,"d":"0.00"}]
[{"$f":"'indikaattori- ja indeksiarvot '!U10*'indikaattori- ja indeksiarvot '!U$1","v":{"v":0,"d":"0.00"}},{"$f":"'indikaattori- ja indeksiarvot '!V10*'indikaattori- ja indeksiarvot '!V$1","v":{"v":0,"d":"0.00"}},{"$f":"'indikaattori- ja indeksiarvot '!W10*'indikaattori- ja indeksiarvot '!W$1","v":{"v":0,"d":"0.00"}},{"v":0,"d":"0.00"},8,{"v":0,"d":"0.00"},{"v":0,"d":"0.00"},{"v":0,"d":"0.00"},{"v":0,"d":"0.00"}]
[{"$f":"'indikaattori- ja indeksiarvot '!U11*'indikaattori- ja indeksiarvot '!U$1","v":{"v":0,"d":"0.00"}},{"$f":"'indikaattori- ja indeksiarvot '!V11*'indikaattori- ja indeksiarvot '!V$1","v":{"v":0,"d":"0.00"}},{"$f":"'indikaattori- ja indeksiarvot '!W11*'indikaattori- ja indeksiarvot '!W$1","v":{"v":0,"d":"0.00"}},{"v":0,"d":"0.00"},9,{"v":0,"d":"0.00"},{"v":0,"d":"0.00"},{"v":0,"d":"0.00"},{"v":0,"d":"0.00"}]
[{"$f":"'indikaattori- ja indeksiarvot '!U12*'indikaattori- ja indeksiarvot '!U$1","v":{"v":0,"d":"0.00"}},{"$f":"'indikaattori- ja indeksiarvot '!V12*'indikaattori- ja indeksiarvot '!V$1","v":{"v":0,"d":"0.00"}},{"$f":"'indikaattori- ja indeksiarvot '!W12*'indikaattori- ja indeksiarvot '!W$1","v":{"v":0,"d":"0.00"}},{"v":0,"d":"0.00"},10,{"v":0,"d":"0.00"},{"v":0,"d":"0.00"},{"v":0,"d":"0.00"},{"v":0,"d":"0.00"}]
[{"$f":"'indikaattori- ja indeksiarvot '!U13*'indikaattori- ja indeksiarvot '!U$1","v":{"v":0,"d":"0.00"}},{"$f":"'indikaattori- ja indeksiarvot '!V13*'indikaattori- ja indeksiarvot '!V$1","v":{"v":0,"d":"0.00"}},{"$f":"'indikaattori- ja indeksiarvot '!W13*'indikaattori- ja indeksiarvot '!W$1","v":{"v":0,"d":"0.00"}},{"v":0,"d":"0.00"},11,{"v":0,"d":"0.00"},{"v":0,"d":"0.00"},{"v":0,"d":"0.00"},{"v":0,"d":"0.00"}]
[{"$f":"'indikaattori- ja indeksiarvot '!U14*'indikaattori- ja indeksiarvot '!U$1","v":{"v":0,"d":"0.00"}},{"$f":"'indikaattori- ja indeksiarvot '!V14*'indikaattori- ja indeksiarvot '!V$1","v":{"v":0,"d":"0.00"}},{"$f":"'indikaattori- ja indeksiarvot '!W14*'indikaattori- ja indeksiarvot '!W$1","v":{"v":0,"d":"0.00"}},{"v":0,"d":"0.00"},12,{"v":0,"d":"0.00"},{"v":0,"d":"0.00"},{"v":0,"d":"0.00"},{"v":0,"d":"0.00"}]
[{"$f":"'indikaattori- ja indeksiarvot '!U15*'indikaattori- ja indeksiarvot '!U$1","v":{"v":0,"d":"0.00"}},{"$f":"'indikaattori- ja indeksiarvot '!V15*'indikaattori- ja indeksiarvot '!V$1","v":{"v":0,"d":"0.00"}},{"$f":"'indikaattori- ja indeksiarvot '!W15*'indikaattori- ja indeksiarvot '!W$1","v":{"v":0,"d":"0.00"}},{"v":0,"d":"0.00"},13,{"v":0,"d":"0.00"},{"v":0,"d":"0.00"},{"v":0,"d":"0.00"},{"v":0,"d":"0.00"}]
[{"$f":"'indikaattori- ja indeksiarvot '!U16*'indikaattori- ja indeksiarvot '!U$1","v":{"v":0,"d":"0.00"}},{"$f":"'indikaattori- ja indeksiarvot '!V16*'indikaattori- ja indeksiarvot '!V$1","v":{"v":0,"d":"0.00"}},{"$f":"'indikaattori- ja indeksiarvot '!W16*'indikaattori- ja indeksiarvot '!W$1","v":{"v":0,"d":"0.00"}},{"v":0,"d":"0.00"},14,{"v":0,"d":"0.00"},{"v":0,"d":"0.00"},{"v":0,"d":"0.00"},{"v":0,"d":"0.00"}]
[{"$f":"'indikaattori- ja indeksiarvot '!U17*'indikaattori- ja indeksiarvot '!U$1","v":{"v":0,"d":"0.00"}},{"$f":"'indikaattori- ja indeksiarvot '!V17*'indikaattori- ja indeksiarvot '!V$1","v":{"v":0,"d":"0.00"}},{"$f":"'indikaattori- ja indeksiarvot '!W17*'indikaattori- ja indeksiarvot '!W$1","v":{"v":0,"d":"0.00"}},{"v":0,"d":"0.00"},15,{"v":0,"d":"0.00"},{"v":0,"d":"0.00"},{"v":0,"d":"0.00"},{"v":0,"d":"0.00"}]

{"sheet":"kuvaaja_monimuotoisuusindeksi","index":7,"n_rows":18,"n_cols":9,"rows_kept":18}
["Jos kaikki valuma-alueet eivät näy kuvaajassa (tai jos näkyy tyhjiä), tarkista, alla olevien taulukoiden kaavat on kopioitu yhtä monelle riville kun osavaluma-alueita on. "]
["Nämä painotetut indikaattorien arvot tulevat välilehdeltä \"indikaattori- ja indeksiarvot\".",{"$nulls":3},"Tässä taulukko järjestää osavaluma-alueet automaattisesti indeksiarvon mukaan "]
["skaalattu_hyvaa_huonommat_jarvet","skaalattu_hyvaa_huonommat_joet","skaalattu_purohelmi_lt_alle50",null,"järjestysnro","skaalattu_hyvaa_huonommat_jarvet","skaalattu_hyvaa_huonommat_joet","skaalattu_purohelmi_lt_alle50","monimuotoisuusindeksi"]
[{"$f":"'indikaattori- ja indeksiarvot '!X3*'indikaattori- ja indeksiarvot '!X$1","v":{"v":0,"d":"0.00"}},{"$f":"'indikaattori- ja indeksiarvot '!Y3*'indikaattori- ja indeksiarvot '!Y$1","v":{"v":0,"d":"0.00"}},{"$f":"'indikaattori- ja indeksiarvot '!Z3*'indikaattori- ja indeksiarvot '!Z$1","v":{"v":0,"d":"0.00"}},{"$f":"SUM(A4:C4)","v":{"v":0,"d":"0.00"}},1,{"$f":"_xlfn._xlws.SORT(A4:D18,4,-1)","v":{"v":0,"d":"0.00"}},{"v":0,"d":"0.00"},{"v":0,"d":"0.00"},{"v":0,"d":"0.00"}]
[{"$f":"'indikaattori- ja indeksiarvot '!X4*'indikaattori- ja indeksiarvot '!X$1","v":{"v":0,"d":"0.00"}},{"$f":"'indikaattori- ja indeksiarvot '!Y4*'indikaattori- ja indeksiarvot '!Y$1","v":{"v":0,"d":"0.00"}},{"$f":"'indikaattori- ja indeksiarvot '!Z4*'indikaattori- ja indeksiarvot '!Z$1","v":{"v":0,"d":"0.00"}},{"$f":"SUM(A5:C5)","v":{"v":0,"d":"0.00"}},2,{"v":0,"d":"0.00"},{"v":0,"d":"0.00"},{"v":0,"d":"0.00"},{"v":0,"d":"0.00"}]
[{"$f":"'indikaattori- ja indeksiarvot '!X5*'indikaattori- ja indeksiarvot '!X$1","v":{"v":0,"d":"0.00"}},{"$f":"'indikaattori- ja indeksiarvot '!Y5*'indikaattori- ja indeksiarvot '!Y$1","v":{"v":0,"d":"0.00"}},{"$f":"'indikaattori- ja indeksiarvot '!Z5*'indikaattori- ja indeksiarvot '!Z$1","v":{"v":0,"d":"0.00"}},{"v":0,"d":"0.00"},3,{"v":0,"d":"0.00"},{"v":0,"d":"0.00"},{"v":0,"d":"0.00"},{"v":0,"d":"0.00"}]
[{"$f":"'indikaattori- ja indeksiarvot '!X6*'indikaattori- ja indeksiarvot '!X$1","v":{"v":0,"d":"0.00"}},{"$f":"'indikaattori- ja indeksiarvot '!Y6*'indikaattori- ja indeksiarvot '!Y$1","v":{"v":0,"d":"0.00"}},{"$f":"'indikaattori- ja indeksiarvot '!Z6*'indikaattori- ja indeksiarvot '!Z$1","v":{"v":0,"d":"0.00"}},{"v":0,"d":"0.00"},4,{"v":0,"d":"0.00"},{"v":0,"d":"0.00"},{"v":0,"d":"0.00"},{"v":0,"d":"0.00"}]
[{"$f":"'indikaattori- ja indeksiarvot '!X7*'indikaattori- ja indeksiarvot '!X$1","v":{"v":0,"d":"0.00"}},{"$f":"'indikaattori- ja indeksiarvot '!Y7*'indikaattori- ja indeksiarvot '!Y$1","v":{"v":0,"d":"0.00"}},{"$f":"'indikaattori- ja indeksiarvot '!Z7*'indikaattori- ja indeksiarvot '!Z$1","v":{"v":0,"d":"0.00"}},{"v":0,"d":"0.00"},5,{"v":0,"d":"0.00"},{"v":0,"d":"0.00"},{"v":0,"d":"0.00"},{"v":0,"d":"0.00"}]
[{"$f":"'indikaattori- ja indeksiarvot '!X8*'indikaattori- ja indeksiarvot '!X$1","v":{"v":0,"d":"0.00"}},{"$f":"'indikaattori- ja indeksiarvot '!Y8*'indikaattori- ja indeksiarvot '!Y$1","v":{"v":0,"d":"0.00"}},{"$f":"'indikaattori- ja indeksiarvot '!Z8*'indikaattori- ja indeksiarvot '!Z$1","v":{"v":0,"d":"0.00"}},{"v":0,"d":"0.00"},6,{"v":0,"d":"0.00"},{"v":0,"d":"0.00"},{"v":0,"d":"0.00"},{"v":0,"d":"0.00"}]
[{"$f":"'indikaattori- ja indeksiarvot '!X9*'indikaattori- ja indeksiarvot '!X$1","v":{"v":0,"d":"0.00"}},{"$f":"'indikaattori- ja indeksiarvot '!Y9*'indikaattori- ja indeksiarvot '!Y$1","v":{"v":0,"d":"0.00"}},{"$f":"'indikaattori- ja indeksiarvot '!Z9*'indikaattori- ja indeksiarvot '!Z$1","v":{"v":0,"d":"0.00"}},{"v":0,"d":"0.00"},7,{"v":0,"d":"0.00"},{"v":0,"d":"0.00"},{"v":0,"d":"0.00"},{"v":0,"d":"0.00"}]
[{"$f":"'indikaattori- ja indeksiarvot '!X10*'indikaattori- ja indeksiarvot '!X$1","v":{"v":0,"d":"0.00"}},{"$f":"'indikaattori- ja indeksiarvot '!Y10*'indikaattori- ja indeksiarvot '!Y$1","v":{"v":0,"d":"0.00"}},{"$f":"'indikaattori- ja indeksiarvot '!Z10*'indikaattori- ja indeksiarvot '!Z$1","v":{"v":0,"d":"0.00"}},{"v":0,"d":"0.00"},8,{"v":0,"d":"0.00"},{"v":0,"d":"0.00"},{"v":0,"d":"0.00"},{"v":0,"d":"0.00"}]
[{"$f":"'indikaattori- ja indeksiarvot '!X11*'indikaattori- ja indeksiarvot '!X$1","v":{"v":0,"d":"0.00"}},{"$f":"'indikaattori- ja indeksiarvot '!Y11*'indikaattori- ja indeksiarvot '!Y$1","v":{"v":0,"d":"0.00"}},{"$f":"'indikaattori- ja indeksiarvot '!Z11*'indikaattori- ja indeksiarvot '!Z$1","v":{"v":0,"d":"0.00"}},{"v":0,"d":"0.00"},9,{"v":0,"d":"0.00"},{"v":0,"d":"0.00"},{"v":0,"d":"0.00"},{"v":0,"d":"0.00"}]
[{"$f":"'indikaattori- ja indeksiarvot '!X12*'indikaattori- ja indeksiarvot '!X$1","v":{"v":0,"d":"0.00"}},{"$f":"'indikaattori- ja indeksiarvot '!Y12*'indikaattori- ja indeksiarvot '!Y$1","v":{"v":0,"d":"0.00"}},{"$f":"'indikaattori- ja indeksiarvot '!Z12*'indikaattori- ja indeksiarvot '!Z$1","v":{"v":0,"d":"0.00"}},{"v":0,"d":"0.00"},10,{"v":0,"d":"0.00"},{"v":0,"d":"0.00"},{"v":0,"d":"0.00"},{"v":0,"d":"0.00"}]
[{"$f":"'indikaattori- ja indeksiarvot '!X13*'indikaattori- ja indeksiarvot '!X$1","v":{"v":0,"d":"0.00"}},{"$f":"'indikaattori- ja indeksiarvot '!Y13*'indikaattori- ja indeksiarvot '!Y$1","v":{"v":0,"d":"0.00"}},{"$f":"'indikaattori- ja indeksiarvot '!Z13*'indikaattori- ja indeksiarvot '!Z$1","v":{"v":0,"d":"0.00"}},{"v":0,"d":"0.00"},11,{"v":0,"d":"0.00"},{"v":0,"d":"0.00"},{"v":0,"d":"0.00"},{"v":0,"d":"0.00"}]
[{"$f":"'indikaattori- ja indeksiarvot '!X14*'indikaattori- ja indeksiarvot '!X$1","v":{"v":0,"d":"0.00"}},{"$f":"'indikaattori- ja indeksiarvot '!Y14*'indikaattori- ja indeksiarvot '!Y$1","v":{"v":0,"d":"0.00"}},{"$f":"'indikaattori- ja indeksiarvot '!Z14*'indikaattori- ja indeksiarvot '!Z$1","v":{"v":0,"d":"0.00"}},{"v":0,"d":"0.00"},12,{"v":0,"d":"0.00"},{"v":0,"d":"0.00"},{"v":0,"d":"0.00"},{"v":0,"d":"0.00"}]
[{"$f":"'indikaattori- ja indeksiarvot '!X15*'indikaattori- ja indeksiarvot '!X$1","v":{"v":0,"d":"0.00"}},{"$f":"'indikaattori- ja indeksiarvot '!Y15*'indikaattori- ja indeksiarvot '!Y$1","v":{"v":0,"d":"0.00"}},{"$f":"'indikaattori- ja indeksiarvot '!Z15*'indikaattori- ja indeksiarvot '!Z$1","v":{"v":0,"d":"0.00"}},{"v":0,"d":"0.00"},13,{"v":0,"d":"0.00"},{"v":0,"d":"0.00"},{"v":0,"d":"0.00"},{"v":0,"d":"0.00"}]
[{"$f":"'indikaattori- ja indeksiarvot '!X16*'indikaattori- ja indeksiarvot '!X$1","v":{"v":0,"d":"0.00"}},{"$f":"'indikaattori- ja indeksiarvot '!Y16*'indikaattori- ja indeksiarvot '!Y$1","v":{"v":0,"d":"0.00"}},{"$f":"'indikaattori- ja indeksiarvot '!Z16*'indikaattori- ja indeksiarvot '!Z$1","v":{"v":0,"d":"0.00"}},{"v":0,"d":"0.00"},14,{"v":0,"d":"0.00"},{"v":0,"d":"0.00"},{"v":0,"d":"0.00"},{"v":0,"d":"0.00"}]
[{"$f":"'indikaattori- ja indeksiarvot '!X17*'indikaattori- ja indeksiarvot '!X$1","v":{"v":0,"d":"0.00"}},{"$f":"'indikaattori- ja indeksiarvot '!Y17*'indikaattori- ja indeksiarvot '!Y$1","v":{"v":0,"d":"0.00"}},{"$f":"'indikaattori- ja indeksiarvot '!Z17*'indikaattori- ja indeksiarvot '!Z$1","v":{"v":0,"d":"0.00"}},{"v":0,"d":"0.00"},15,{"v":0,"d":"0.00"},{"v":0,"d":"0.00"},{"v":0,"d":"0.00"},{"v":0,"d":"0.00"}]